fUST/lending_fUST_20240505
["ID","MTS","AMOUNT","RATE_DAILY","PERIOD"]
[325434708,1714885839680,-500.0,0.00021915,2]
[325434709,1714885839689,-154.90767069,0.00021916,2]
[325434710,1714885839698,-919.97093194,0.00021917,2]
[325434711,1714885839707,-500.0,0.00021917,2]
[325434712,1714885839716,-500.0,0.00021917,2]
[325434713,1714885839726,-500.0,0.00021917,2]
[325434714,1714885839735,-500.0,0.00021917,2]
[325434715,1714885839744,-500.0,0.00021917,2]
[325434716,1714885839753,-500.0,0.00021917,2]
[325434717,1714885839762,-472.07480321,0.00021917,2]
[325434718,1714885839770,-2.03374912,0.00021917,2]
[325435172,1714886732166,-1000.0139128,0.0002,2]
[325435173,1714886732185,-154.69061876,0.0002023,2]
[325435174,1714886732204,-150.0,0.00020231,3]
[325435175,1714886732225,-150.0,0.00020483,3]
[325435176,1714886732244,-493.0,0.00020647,2]
[325435177,1714886732263,-150.0,0.00020647,2]
[325435178,1714886732282,-150.0,0.00020734,3]
[325435179,1714886732302,-150.0,0.00020986,3]
[325435180,1714886732321,-602.13126,0.00021,2]
[325435181,1714886732341,-172.567823,0.00021362,2]
[325435182,1714886732360,-150.0,0.00021646,2]
[325435183,1714886732379,-163.69329338,0.00021698,2]
[325435184,1714886732400,-9304.64279928,0.00021817,3]
[325435185,1714886732420,-151.24914047,0.00021817,2]
[325435186,1714886732440,-151.24914043,0.00021861,2]
[325435187,1714886732464,-1022.5054651,0.000219,2]
[325435188,1714886732484,-371.542719,0.000219,9]
[325435189,1714886732505,-151.24914043,0.00021905,2]
[325435190,1714886732525,-1338.62806329,0.00021915,2]
[325435191,1714886732546,-5004.96846216,0.00021915,2]
[325435192,1714886732567,-1582.67226816,0.00021916,2]
[325435193,1714886732586,-500.0,0.00021916,2]
[325435194,1714886732606,-273.5,0.00021916,2]
[325435195,1714886732627,-459.98546597,0.00021917,2]
[325435196,1714886732648,-501.09736411,0.00021917,2]
[325435197,1714886732667,-500.0,0.00021917,2]
[325435198,1714886732687,-500.0,0.00021917,2]
[325435199,1714886732707,-500.0,0.00021917,2]
[325435200,1714886732727,-500.0,0.00021917,2]
[325435201,1714886732747,-154.95846052,0.00021917,2]
[325435202,1714886732767,-500.0,0.00021917,2]
[325435203,1714886732786,-503.93630697,0.00021917,2]
[325435204,1714886732807,-500.0,0.00021917,2]
[325435205,1714886732826,-500.0,0.00021917,2]
[325435206,1714886732845,-1002.36,0.00021917,2]
[325435207,1714886732865,-604.12,0.00021917,2]
[325435208,1714886732885,-500.0,0.00021917,2]
[325435209,1714886732904,-500.0,0.00021917,2]
[325435210,1714886732926,-225.22348155,0.00021917,2]
[325435211,1714886745112,-154.69061876,0.00021916,2]
[325435212,1714886745132,-1463.90651845,0.00021917,2]
[325435213,1714886745150,-500.0,0.00021917,2]
[325435214,1714886745169,-500.0,0.00021917,2]
[325435215,1714886745189,-500.0,0.00021917,2]
[325435216,1714886745208,-522.35462852,0.00021917,2]
[325435217,1714886745226,-535.03,0.00021917,2]
[325435218,1714886745244,-500.0,0.00021917,2]
[325435219,1714886745262,-500.13470901,0.00021917,2]
[325435220,1714886745281,-500.0,0.00021917,2]
[325435221,1714886745300,-567.10125746,0.00021917,2]
[325435222,1714886745318,-500.0,0.00021917,2]
[325435223,1714886745337,-500.0,0.00021917,2]
[325435224,1714886745355,-500.0,0.00021917,2]
[325435225,1714886745376,-500.0,0.00021917,2]
[325435226,1714886745396,-500.0,0.00021917,2]
[325435227,1714886745415,-500.0,0.00021917,2]
[325435228,1714886745435,-500.0,0.00021917,2]
[325435229,1714886745458,-500.0,0.00021917,2]
[325435230,1714886745477,-500.0,0.00021917,2]
[325435231,1714886745497,-500.0,0.00021917,2]
[325435232,1714886745517,-500.0,0.00021917,2]
[325435233,1714886745541,-500.0,0.00021917,2]
[325435234,1714886745560,-775.36,0.00021917,2]
[325435235,1714886745580,-500.0,0.00021917,2]
[325435236,1714886745599,-503.7380636,0.00021917,2]
[325435237,1714886745617,-500.0,0.00021917,2]
[325435238,1714886745635,-500.0,0.00021917,2]
[325435239,1714886745654,-501.22540546,0.00021917,2]
[325435240,1714886745673,-500.0,0.00021917,2]
[325435241,1714886745694,-500.0,0.00021917,2]
[325435242,1714886745713,-484.44348119,0.00021917,2]
[325435243,1714886745732,-500.0,0.00021917,2]
[325435244,1714886745751,-502.17304899,0.00021917,2]
[325435245,1714886745770,-500.0,0.00021917,2]
[325435246,1714886745792,-1477.46,0.00021917,2]
[325435247,1714886745812,-500.0,0.00021917,2]
[325435248,1714886745832,-500.0,0.00021917,2]
[325435249,1714886745852,-304.20752797,0.00021917,2]
[325435250,1714886745872,-390.77976211,0.00021917,2]
[325435251,1714886745892,-500.0,0.00021917,2]
[325435252,1714886745912,-500.0,0.00021917,2]
[325435253,1714886745935,-521.83,0.00021917,2]
[325435254,1714886745957,-500.0,0.00021917,2]
[325435255,1714886745977,-500.0,0.00021917,2]
[325435256,1714886745996,-500.0,0.00021917,2]
[325435257,1714886746016,-500.0,0.00021917,2]
[325435258,1714886746035,-501.34707436,0.00021917,2]
[325435259,1714886746056,-500.0,0.00021917,2]
[325435260,1714886746078,-500.0,0.00021917,2]
[325435261,1714886746098,-503.44909798,0.00021917,2]
[325435262,1714886746310,-729.98,0.00021917,2]
[325435263,1714886746332,-500.0,0.00021917,2]
[325435264,1714886746353,-500.0,0.00021917,2]
[325435265,1714886746372,-503.1184437,0.00021917,2]
[325435266,1714886746394,-504.51526608,0.00021917,2]
[325435267,1714886746414,-500.0,0.00021917,2]
[325435268,1714886746438,-666.0,0.00021917,2]
[325435269,1714886746458,-500.0,0.00021917,2]
[325435270,1714886746482,-500.0,0.00021917,2]
[325435271,1714886746504,-500.0,0.00021917,2]
[325435272,1714886746525,-500.0,0.00021917,2]
[325435273,1714886746546,-502.97962679,0.00021917,2]
[325435274,1714886746566,-500.0,0.00021917,2]
[325435275,1714886746587,-502.45978291,0.00021917,2]
[325435276,1714886746607,-502.64574795,0.00021917,2]
[325435277,1714886746626,-686.42,0.00021917,2]
[325435278,1714886746645,-502.1944346,0.00021917,2]
[325435279,1714886746664,-500.0,0.00021917,2]
[325435280,1714886746689,-500.0,0.00021917,2]
[325435281,1714886746708,-1009.15,0.00021917,2]
[325435282,1714886746727,-500.0,0.00021917,2]
[325435283,1714886746746,-841.32,0.00021917,2]
[325435284,1714886746766,-328.61176809,0.00021917,2]
[325435285,1714886746787,-500.0,0.00021917,2]
[325435286,1714886746805,-500.0,0.00021917,2]
[325435287,1714886746824,-542.05,0.00021917,2]
[325435288,1714886746843,-500.0,0.00021917,2]
[325435289,1714886746862,-500.0,0.00021917,2]
[325435290,1714886746880,-500.0,0.00021917,2]
[325435291,1714886746898,-500.0,0.00021917,2]
[325435292,1714886746917,-528.23,0.00021917,2]
[325435293,1714886746936,-500.0,0.00021917,2]
[325435294,1714886746955,-500.0,0.00021917,2]
[325435295,1714886746974,-500.0,0.00021917,2]
[325435296,1714886746994,-503.96374288,0.00021917,2]
[325435297,1714886747013,-500.0,0.00021917,2]
[325435298,1714886747032,-438.17405269,0.00021917,2]
[325435299,1714886747050,-500.0,0.00021917,2]
[325435300,1714886747069,-510.22,0.00021917,2]
[325435301,1714886747087,-500.0,0.00021917,2]
[325435302,1714886747107,-500.0,0.00021917,2]
[325435303,1714886747128,-559.00843727,0.00021917,2]
[325435304,1714886747147,-501.3,0.00021917,2]
[325435305,1714886747165,-500.0,0.00021917,2]
[325435306,1714886747185,-500.0,0.00021917,2]
[325435307,1714886747204,-500.0,0.00021917,2]
[325435308,1714886747224,-500.0,0.00021917,2]
[325435309,1714886747242,-500.0,0.00021917,2]
[325435310,1714886747261,-500.0,0.00021917,2]
[325435311,1714886747279,-500.0,0.00021917,2]
[325435312,1714886747299,-502.41529599,0.00021917,2]
[325435313,1714886747318,-500.0,0.00021917,2]
[325435314,1714886747337,-781.97,0.00021917,2]
[325435315,1714886747356,-507.16905871,0.00021917,2]
[325435316,1714886747375,-577.52755446,0.00021917,2]
[325435317,1714886747393,-500.0,0.00021917,2]
[325435318,1714886747412,-500.0,0.00021917,2]
[325435319,1714886747431,-500.0,0.00021917,2]
[325435320,1714886747450,-1000.0,0.00021917,2]
[325435321,1714886747473,-502.56903227,0.00021917,2]
[325435322,1714886747492,-500.0,0.00021917,2]
[325435323,1714886747512,-500.0,0.00021917,2]
[325435324,1714886747532,-500.0,0.00021917,2]
[325435325,1714886747553,-500.0,0.00021917,2]
[325435326,1714886747574,-500.0,0.00021917,2]
[325435327,1714886747593,-500.0,0.00021917,2]
[325435328,1714886747613,-505.68,0.00021917,2]
[325435329,1714886747633,-500.0,0.00021917,2]
[325435330,1714886747653,-583.9435703,0.00021917,2]
[325435331,1714886747673,-500.0,0.00021917,2]
[325435332,1714886747694,-601.21,0.00021917,2]
[325435333,1714886747713,-609.56115887,0.00021917,2]
[325435334,1714886747733,-512.34,0.00021917,2]
[325435335,1714886747753,-500.0,0.00021917,2]
[325435336,1714886747772,-171.06531658,0.00021917,2]
[325435337,1714886747791,-500.0,0.00021917,2]
[325435338,1714886747811,-500.0,0.00021917,2]
[325435339,1714886747831,-500.0,0.00021917,2]
[325435340,1714886747851,-500.0,0.00021917,2]
[325435341,1714886747871,-500.0,0.00021917,2]
[325435342,1714886747891,-509.55334989,0.00021917,2]
[325435343,1714886747912,-500.0,0.00021917,2]
[325435344,1714886747931,-500.0,0.00021917,2]
[325435345,1714886747950,-1911.42,0.00021917,2]
[325435346,1714886747971,-773.69,0.00021917,2]
[325435347,1714886747991,-501.26783135,0.00021917,2]
[325435348,1714886748011,-500.0,0.00021917,2]
[325435349,1714886748030,-500.0,0.00021917,2]
[325435350,1714886748049,-500.0,0.00021917,2]
[325435351,1714886748172,-544.57180635,0.00021917,2]
[325435352,1714886748194,-502.58500893,0.00021917,2]
[325435353,1714886748215,-500.0,0.00021917,2]
[325435354,1714886748234,-918.36,0.00021917,2]
[325435355,1714886748252,-278.2599987,0.00021917,2]
[325435356,1714886748275,-506.40658211,0.00021917,2]
[325435357,1714886748294,-500.0,0.00021917,2]
[325435358,1714886748313,-500.0,0.00021917,2]
[325435359,1714886748334,-409.08686719,0.00021917,2]
[325435360,1714886748353,-1850.68,0.00021917,2]
[325435361,1714886748375,-503.83192661,0.00021917,2]
[325435362,1714886748394,-500.0,0.00021917,2]
[325435363,1714886748415,-500.0,0.00021917,2]
[325435364,1714886748435,-500.0,0.00021917,2]
[325435365,1714886748457,-502.7941476,0.00021917,2]
[325435366,1714886748478,-501.15936561,0.00021917,2]
[325435367,1714886748498,-508.37,0.00021917,2]
[325435368,1714886748519,-500.0,0.00021917,2]
[325435369,1714886748540,-500.0,0.00021917,2]
[325435370,1714886748559,-500.0,0.00021917,2]
[325435371,1714886748579,-500.0,0.00021917,2]
[325435372,1714886748598,-500.0,0.00021917,2]
[325435373,1714886748617,-500.0,0.00021917,2]
[325435374,1714886748639,-500.0,0.00021917,2]
[325435375,1714886748658,-500.0,0.00021917,2]
[325435376,1714886748677,-500.0,0.00021917,2]
[325435377,1714886748698,-500.0,0.00021917,2]
[325435378,1714886748717,-805.92,0.00021917,2]
[325435379,1714886748736,-500.0,0.00021917,2]
[325435380,1714886748755,-500.0,0.00021917,2]
[325435381,1714886748773,-500.0,0.00021917,2]
[325435382,1714886748792,-500.0,0.00021917,2]
[325435383,1714886748810,-500.0,0.00021917,2]
[325435384,1714886748830,-500.0,0.00021917,2]
[325435385,1714886748850,-500.0,0.00021917,2]
[325435386,1714886748870,-701.65,0.00021917,2]
[325435387,1714886748889,-5355.76,0.00021917,2]
[325435388,1714886748907,-500.0,0.00021917,2]
[325435389,1714886748926,-500.0,0.00021917,2]
[325435390,1714886748945,-2503.45,0.00021917,2]
[325435391,1714886748964,-500.0,0.00021917,2]
[325435392,1714886748984,-500.0,0.00021917,2]
[325435393,1714886749005,-917.99,0.00021917,2]
[325435394,1714886749025,-500.0,0.00021917,2]
[325435395,1714886749044,-3722.03,0.00021917,2]
[325435396,1714886749064,-2677.47,0.00021917,2]
[325435397,1714886749083,-1276.4,0.00021917,2]
[325435398,1714886749103,-500.0,0.00021917,2]
[325435399,1714886749125,-674.42,0.00021917,2]
[325435400,1714886749146,-500.0,0.00021917,2]
[325435401,1714886749168,-500.0,0.00021917,2]
[325435402,1714886749190,-500.0,0.00021917,2]
[325435403,1714886749209,-1407.5,0.00021917,2]
[325435404,1714886749232,-1055.91,0.00021917,2]
[325435405,1714886749254,-500.0,0.00021917,2]
[325435406,1714886749274,-500.0,0.00021917,2]
[325435407,1714886749293,-565.54171352,0.00021917,2]
[325435408,1714886749314,-500.0,0.00021917,2]
[325435409,1714886749337,-500.0,0.00021917,2]
[325435410,1714886749357,-1068.25,0.00021917,2]
[325435411,1714886749378,-560.64,0.00021917,2]
[325435412,1714886749397,-500.0,0.00021917,2]
[325435413,1714886749416,-500.0,0.00021917,2]
[325435414,1714886749436,-851.34,0.00021917,2]
[325435415,1714886749456,-500.0,0.00021917,2]
[325435416,1714886749478,-649.24,0.00021917,2]
[325435417,1714886749500,-500.0,0.00021917,2]
[325435418,1714886749522,-613.32,0.00021917,2]
[325435419,1714886749542,-341.21082114,0.00021917,2]
[325435421,1714886929844,2151.0,0.00017,2]
[325435446,1714887032466,-150.0,0.00020333,3]
[325435448,1714887032476,-150.0,0.00020575,3]
[325435450,1714887032486,-2061.56662941,0.00021,2]
[325435452,1714887032495,-151.24914043,0.00021817,2]
[325435454,1714887032504,-151.24914043,0.00021875,2]
[325435456,1714887032513,-602.13127,0.000219,2]
[325435458,1714887032523,-306.59762143,0.00021915,2]
[325435460,1714887032532,-229.99273299,0.00021917,2]
[325435462,1714887032542,-158.78917886,0.00021917,2]
[325435464,1714887032555,-501.25067708,0.00021917,2]
[325435467,1714887032566,-503.35462909,0.00021917,2]
[325435470,1714887032575,-500.0,0.00021917,2]
[325435473,1714887032584,-576.67328465,0.00021917,2]
[325435475,1714887032595,-610.48,0.00021917,2]
[325435477,1714887032604,-504.82771099,0.00021917,2]
[325435479,1714887032613,-500.0,0.00021917,2]
[325435480,1714887032624,-500.0,0.00021917,2]
[325435481,1714887032633,-1795.51,0.00021917,2]
[325435482,1714887032643,-500.0,0.00021917,2]
[325435484,1714887032652,-573.96844349,0.00021917,2]
[325435486,1714887032662,-500.0,0.00021917,2]
[325435487,1714887032671,-500.0,0.00021917,2]
[325435488,1714887032681,-500.0,0.00021917,2]
[325435489,1714887032690,-500.0,0.00021917,2]
[325435490,1714887032699,-300.0,0.00021917,2]
[325435491,1714887032710,-500.0,0.00021917,2]
[325435492,1714887032719,-500.0,0.00021917,2]
[325435493,1714887032729,-500.0,0.00021917,2]
[325435494,1714887032739,-620.43,0.00021917,2]
[325435495,1714887032748,-514.83769653,0.00021917,2]
[325435496,1714887032757,-500.0,0.00021917,2]
[325435497,1714887032767,-500.0,0.00021917,2]
[325435498,1714887032776,-500.0,0.00021917,2]
[325435499,1714887032787,-516.82174436,0.00021917,2]
[325435500,1714887032796,-585.79914903,0.00021917,2]
[325435501,1714887032806,-627.72,0.00021917,2]
[325435502,1714887032815,-500.0,0.00021917,2]
[325435503,1714887032824,-500.0,0.00021917,2]
[325435504,1714887032833,-500.0,0.00021917,2]
[325435505,1714887032843,-500.0,0.00021917,2]
[325435506,1714887032852,-1314.85,0.00021917,2]
[325435507,1714887032862,-1036.12,0.00021917,2]
[325435508,1714887032871,-561.70198309,0.00021917,2]
[325435509,1714887032880,-973.98,0.00021917,2]
[325435510,1714887032889,-1748.72,0.00021917,2]
[325435511,1714887032899,-500.0,0.00021917,2]
[325435512,1714887032908,-830.9,0.00021917,2]
[325435513,1714887032917,-500.0,0.00021917,2]
[325435514,1714887032927,-500.0,0.00021917,2]
[325435515,1714887032936,-500.0,0.00021917,2]
[325435516,1714887032946,-500.0,0.00021917,2]
[325435517,1714887032957,-521.85448064,0.00021917,2]
[325435518,1714887032967,-500.0,0.00021917,2]
[325435519,1714887032976,-500.0,0.00021917,2]
[325435520,1714887032986,-500.0,0.00021917,2]
[325435521,1714887032997,-501.38516618,0.00021917,2]
[325435522,1714887033007,-500.0,0.00021917,2]
[325435523,1714887033017,-500.0,0.00021917,2]
[325435524,1714887033026,-500.0,0.00021917,2]
[325435525,1714887033035,-545.72,0.00021917,2]
[325435526,1714887033045,-1212.78,0.00021917,2]
[325435527,1714887033055,-500.0,0.00021917,2]
[325435528,1714887033203,-500.0,0.00021917,2]
[325435529,1714887033213,-500.0,0.00021917,2]
[325435530,1714887033223,-500.0,0.00021917,2]
[325435531,1714887033232,-500.0,0.00021917,2]
[325435532,1714887033241,-500.0,0.00021917,2]
[325435533,1714887033251,-500.0,0.00021917,2]
[325435534,1714887033260,-500.0,0.00021917,2]
[325435535,1714887033269,-380.4913332,0.00021917,2]
[325435536,1714887033278,-783.29,0.00021917,2]
[325435537,1714887033287,-300.0,0.00021917,2]
[325435538,1714887033296,-710.26,0.00021917,2]
[325435539,1714887033306,-500.0,0.00021917,2]
[325435540,1714887033316,-500.0,0.00021917,2]
[325435541,1714887033325,-500.0,0.00021917,2]
[325435542,1714887033334,-504.80372952,0.00021917,2]
[325435543,1714887033344,-500.0,0.00021917,2]
[325435544,1714887033353,-500.0,0.00021917,2]
[325435545,1714887033362,-500.0,0.00021917,2]
[325435546,1714887033372,-550.59,0.00021917,2]
[325435547,1714887033381,-500.0,0.00021917,2]
[325435548,1714887033390,-503.06114725,0.00021917,2]
[325435549,1714887033400,-564.96,0.00021917,2]
[325435550,1714887033409,-500.0,0.00021917,2]
[325435551,1714887033418,-500.0,0.00021917,2]
[325435552,1714887033427,-500.0,0.00021917,2]
[325435553,1714887033436,-501.31064797,0.00021917,2]
[325435554,1714887033445,-506.60735848,0.00021917,2]
[325435555,1714887033456,-500.0,0.00021917,2]
[325435556,1714887033466,-1474.75,0.00021917,2]
[325435557,1714887033475,-821.48,0.00021917,2]
[325435558,1714887033484,-705.82,0.00021917,2]
[325435559,1714887033493,-500.0,0.00021917,2]
[325435560,1714887033502,-500.0,0.00021917,2]
[325435561,1714887033511,-500.0,0.00021917,2]
[325435562,1714887033521,-500.0,0.00021917,2]
[325435563,1714887033530,-500.0,0.00021917,2]
[325435564,1714887033540,-500.0,0.00021917,2]
[325435565,1714887033552,-500.0,0.00021917,2]
[325435566,1714887033562,-503.98117104,0.00021917,2]
[325435567,1714887033571,-500.0,0.00021917,2]
[325435568,1714887033582,-500.0,0.00021917,2]
[325435569,1714887033592,-668.22,0.00021917,2]
[325435570,1714887033602,-877.07,0.00021917,2]
[325435571,1714887033611,-500.0,0.00021917,2]
[325435572,1714887033620,-500.0,0.00021917,2]
[325435573,1714887033632,-510.32316016,0.00021917,2]
[325435574,1714887033641,-500.0,0.00021917,2]
[325435575,1714887033650,-500.0,0.00021917,2]
[325435576,1714887033660,-500.0,0.00021917,2]
[325435577,1714887033669,-500.0,0.00021917,2]
[325435578,1714887033678,-500.0,0.00021917,2]
[325435579,1714887033687,-219.35528052,0.00021917,2]
[325435618,1714887038836,-280.64471948,0.00021917,2]
[325435620,1714887038846,-620.1,0.00021917,2]
[325435621,1714887038855,-500.0,0.00021917,2]
[325435623,1714887038865,-500.0,0.00021917,2]
[325435624,1714887038875,-500.0,0.00021917,2]
[325435625,1714887038885,-500.0,0.00021917,2]
[325435626,1714887038895,-500.0,0.00021917,2]
[325435627,1714887038905,-75.92030112,0.00021917,2]
[325435671,1714887045487,-660.86969888,0.00021917,2]
[325435672,1714887045499,-500.0,0.00021917,2]
[325435673,1714887045508,-500.0,0.00021917,2]
[325435674,1714887045518,-500.0,0.00021917,2]
[325435675,1714887045528,-500.0,0.00021917,2]
[325435676,1714887045538,-500.0,0.00021917,2]
[325435677,1714887045549,-500.0,0.00021917,2]
[325435678,1714887045563,-1737.54,0.00021917,2]
[325435679,1714887045572,-500.0,0.00021917,2]
[325435680,1714887045581,-1450.2,0.00021917,2]
[325435681,1714887045591,-500.0,0.00021917,2]
[325435682,1714887045602,-744.43,0.00021917,2]
[325435683,1714887045612,-571.23,0.00021917,2]
[325435684,1714887045621,-500.0,0.00021917,2]
[325435685,1714887045633,-500.0,0.00021917,2]
[325435686,1714887045644,-2571.63,0.00021917,2]
[325435687,1714887045653,-500.0,0.00021917,2]
[325435688,1714887045663,-500.0,0.00021917,2]
[325435689,1714887045671,-500.0,0.00021917,2]
[325435690,1714887045680,-30.44506812,0.00021917,2]
[325435703,1714888100333,1493.11557101,9.999e-05,2]
[325435721,1714888232686,-150.0,0.00020347,3]
[325435722,1714888232696,-1493.11557101,0.00020587,2]
[325435723,1714888232705,-150.0,0.00020588,3]
[325435724,1714888232715,-495.03,0.00020647,2]
[325435725,1714888232725,-150.331,0.00020647,2]
[325435726,1714888232736,-150.0,0.00020829,3]
[325435727,1714888232745,-150.0,0.0002107,3]
[325435728,1714888232755,-4942.92290567,0.00021888,2]
[325435729,1714888232764,-864.92566081,0.00021915,2]
[325435730,1714888232774,-100256.35257418,0.00021915,2]
[325435731,1714888232784,-500.0,0.00021915,2]
[325435732,1714888232794,-336.35107272,0.00021915,2]
[325435733,1714888232803,-500.0,0.00021915,2]
[325435734,1714888232814,-500.0,0.00021915,2]
[325435735,1714888232824,-229.99273297,0.00021916,2]
[325435736,1714888232834,-204.20454175,0.00021916,2]
[325435737,1714888232853,-10918.77311269,0.00021916,2]
[325435746,1714888238727,-500.0,0.00021915,2]
[325435747,1714888238738,-20500.0,0.00021916,2]
[325436274,1714889432409,346.47906079,0.00019178,2]
[325436275,1714889432469,448.22813351,0.00019178,2]
[325436276,1714889432509,555.35757818,0.00019178,2]
[325436278,1714889433174,346.86699552,0.00019178,2]
[325436882,1714890330147,-158.9744088,0.0002,2]
[325436899,1714890632420,-1351.10514884,0.0002,2]
[325436903,1714890632448,180.86952688,0.00019178,2]
[325436904,1714890632498,238.01039065,0.00019178,2]
[325436937,1714890643472,-672.8762353,0.0002,2]
[325437018,1714891555166,-1852.20994848,0.0002,2]
[325437019,1714891632094,-1624.17407399,0.0002,2]
[325438721,1714891838443,-9074.03002857,0.0002,2]
[325438723,1714891838452,-493.0,0.00020705,2]
[325438726,1714891838461,-236.77113315,0.00021,2]
[325438729,1714891838471,-991.15199934,0.00021361,2]
[325438732,1714891838480,-172.56782,0.00021362,2]
[325438734,1714891838489,-172.56782,0.00021362,2]
[325438737,1714891838498,-408.1230692,0.000214,2]
[325438740,1714891838509,-172.56782,0.00021896,2]
[325438743,1714891838518,-476.0,0.000219,2]
[325438746,1714891838528,-155.13126403,0.00021914,2]
[325438748,1714891838538,-803.07181089,0.00021915,2]
[325438751,1714891838547,-154.89377878,0.00021915,2]
[325438753,1714891838557,-233.83126766,0.00021915,2]
[325438755,1714891838566,-29244.30116959,0.00021916,2]
[325438924,1714892249929,150.0,0.00025192,60]
[325438929,1714892735172,-150.0,0.00020705,2]
[325438930,1714892735194,-493.0,0.00020897,2]
[325438931,1714892735217,-1342.93199485,0.00021,2]
[325438932,1714892829211,-1715.63066134,0.00021,2]
[325438933,1714892829239,-197.43641427,0.00021,2]
[325438934,1714892829259,-137.54254713,0.00021,2]
[325439099,1714893046880,-219.26377715,0.00021,2]
[325439101,1714893046889,-151.24914043,0.00021817,2]
[325439103,1714893046898,-588.0,0.000219,2]
[325439105,1714893046907,-994.55171564,0.00021915,2]
[325439107,1714893046918,-2921.80323743,0.00021916,2]
[325439130,1714893246661,815.983981,9.999e-05,2]
[325439133,1714893296255,356.80632428,9.999e-05,2]
[325439134,1714893316257,287.26795515,9.999e-05,2]
[325439140,1714893944193,-3681.77002961,0.00021,2]
[325439143,1714894039087,-500.0,0.00019178,2]
[325439144,1714894039108,-500.0,0.00019178,2]
[325439145,1714894039130,-448.22813351,0.00019178,2]
[325439146,1714894039152,-346.47906079,0.00019178,2]
[325439147,1714894039174,-257.89568686,0.00019178,2]
[325439149,1714894214241,815.983981,9.999e-05,2]
[325439177,1714894233729,-162.0455608,0.00020617,2]
[325439178,1714894233739,-493.0,0.00021088,2]
[325439179,1714894233748,-1577.44370859,0.00021915,2]
[325439180,1714894233758,-923.59578149,0.00021915,2]
[325439182,1714894233767,-488.51147253,0.00021915,2]
[325439184,1714894233776,-154.73694719,0.00021915,2]
[325439185,1714894233785,-4750.35709325,0.00021915,2]
[325439186,1714894233797,-215.10755081,0.00021915,2]
[325439187,1714894233809,-817.56097439,0.00021915,2]
[325439188,1714894233823,-11629.74679576,0.00021916,2]
[325439189,1714894233833,-195.53822271,0.00021916,2]
[325439190,1714894233843,-500.0,0.00021916,2]
[325439191,1714894233852,-440.35757818,0.00021916,2]
[325439192,1714894233862,-180.86952688,0.00021916,2]
[325439193,1714894233872,-346.86699552,0.00021916,2]
[325439194,1714894233882,-643.85979586,0.00021917,2]
[325439195,1714894233891,-500.0,0.00021917,2]
[325439196,1714894233900,-500.0,0.00021917,2]
[325439197,1714894233910,-289.23437252,0.00021917,2]
[325439198,1714894233919,-500.0,0.00021917,2]
[325439199,1714894233929,-500.0,0.00021917,2]
[325439200,1714894233938,-519.21,0.00021917,2]
[325439201,1714894233948,-500.0,0.00021917,2]
[325439202,1714894233957,-419.44971711,0.00021917,2]
[325439203,1714894233967,-500.0,0.00021917,2]
[325439204,1714894233976,-500.0,0.00021917,2]
[325439205,1714894233985,-464.15282679,0.00021917,2]
[325439206,1714894233994,-502.20935203,0.00021917,2]
[325439207,1714894234004,-500.0,0.00021917,2]
[325439208,1714894234013,-502.62984476,0.00021917,2]
[325439209,1714894234023,-500.0,0.00021917,2]